bitfinex/quotes_ETHUSD_20240819
["timestamp","ask_amount","ask_price","bid_price","bid_amount"]
[1724110702387,1.297,2634.4,2634.2,0.08950393]
[1724110705640,3.7281,2634.6,2634.4,2.65714]
[1724110705837,1.297,2634.6,2634.3,5.31435]
[1724110706062,1.297,2634.6,2634.5,0.08941157]
[1724110706229,1.297,2634.6,2634.4,0.08944236]
[1724110706429,1.297,2634.6,2634.3,5.31434]
[1724110706430,1.297,2634.6,2634.5,0.08941157]
[1724110706868,1.297,2634.6,2634.3,2.65715]
[1724110707051,1.297,2634.6,2634.5,0.08941157]
[1724110707255,1.297,2634.6,2634.4,0.08944236]
[1724110707444,1.297,2634.6,2634.5,0.08941157]
[1724110707644,2.40238,2634.6,2634.5,0.08941157]
[1724110707855,2.40238,2634.6,2634.2,2.65732]
[1724110708181,1.297,2634.4,2634.2,2.65732]
[1724110708481,1.297,2634.4,2634.3,0.08947314]
[1724110708884,1.297,2634.4,2634.2,2.65732]
[1724110709081,1.297,2634.4,2634.3,0.08947314]
[1724110709453,1.297,2634.4,2634.2,2.65732]
[1724110709657,1.297,2634.4,2634.3,0.08947314]
[1724110710043,1.297,2634.4,2634.2,2.65732]
[1724110710238,1.297,2634.4,2634.3,0.08947314]
[1724110710681,1.297,2634.4,2634.2,2.65732]
[1724110711002,1.297,2634.4,2634.3,2.74619013]
[1724110713260,1.297,2634.6,2634.3,2.74619013]
[1724110716192,1.297,2634.6,2634.3,2.74613013]
[1724110716353,1.297,2634.6,2634.3,5.40332013]
[1724110716699,1.297,2634.6,2634.3,5.40331013]
[1724110717006,1.297,2634.6,2634.4,2.65707]
[1724110717499,1.297,2634.6,2634.5,0.08887856]
[1724110718175,3.6438,2634.8,2634.5,0.08887856]
[1724110719255,1.297,2634.6,2634.5,0.08887856]
[1724110719457,8.97498,2634.6,2634.5,0.08887856]
[1724110719782,8.97498,2634.6,2634.0,2.65755]
[1724110719783,2.65708,2634.5,2634.0,2.65755]
[1724110719981,1.297,2634.4,2634.1,0.08899194]
[1724110720990,1.297,2634.4,2633.9,5.31516]
[1724110721204,1.297,2634.2,2634.0,0.08902273]
[1724110721353,1.297,2634.2,2633.7,2.65777]
[1724110721354,3.95438,2634.2,2633.7,2.65777]
[1724110721553,1.297,2634.0,2633.8,0.08908433]
[1724110721753,3.95456,2634.0,2633.5,2.65799]
[1724110721993,3.95456,2634.0,2633.6,0.08924373]
[1724110722303,1.297,2634.0,2633.6,2.74719373]
[1724110722892,1.297,2634.0,2633.6,0.08924373]
[1724110723217,3.95456,2634.0,2633.6,0.08924373]
[1724110724218,2.65765,2633.9,2633.6,0.08924373]
[1724110724439,3.6101,2633.8,2633.6,0.08924373]
[1724110724593,3.6101,2633.8,2633.3,3.4912816]
[1724110724794,3.6101,2633.8,2633.4,0.08641225]
[1724110724795,6.2679,2633.8,2633.4,0.08641225]
[1724110726721,3.6101,2633.8,2633.4,0.08641225]
[1724110727694,3.6101,2633.8,2633.4,2.74454225]
[1724110728937,3.6101,2633.8,2633.5,2.65805]
[1724110729310,2.3131,2633.8,2633.6,0.08635063]
[1724110731034,2.3131,2633.8,2633.7,0.08631983]
[1724110731410,2.3131,2633.8,2633.3,5.31639]
[1724110731736,1.297,2633.7,2633.4,0.08641225]
[1724110732842,2.3609,2633.6,2633.4,0.08641225]
[1724110733202,2.3609,2633.6,2633.2,2.65834]
[1724110733393,2.3609,2633.6,2633.3,0.08433769]
[1724110733600,2.3609,2633.6,2633.2,2.65834]
[1724110733824,2.3609,2633.6,2633.3,0.08433769]
[1724110734360,2.3609,2633.6,2632.9,2.4321]
[1724110734361,4.95671,2633.3,2632.7,2.65881]
[1724110734652,1.297,2633.0,2632.7,2.65881]
[1724110734944,2.2984,2633.3,2632.8,2.65868]
[1724110735367,2.2984,2633.3,2633.0,2.65856]
[1724110735739,1.297,2633.2,2633.0,2.65856]
[1724110737111,1.297,2633.2,2632.8,2.65874]
[1724110737112,2.2821,2633.1,2632.8,2.65874]
[1724110737346,1.297,2633.2,2632.8,2.6587]
[1724110737839,1.297,2633.0,2632.6,5.4334988]
[1724110738027,1.297,2633.0,2632.6,2.7745988]
[1724110738319,2.2821,2632.9,2632.6,5.4335088]
[1724110738751,2.2821,2632.9,2632.6,2.7745988]
[1724110739747,2.2821,2632.9,2632.6,0.1157288]
[1724110740358,2.2821,2632.9,2632.6,2.7746788]
[1724110740744,2.2821,2632.9,2632.6,0.1157288]
[1724110741134,1.297,2632.8,2632.6,0.1157288]
[1724110745799,1.297,2632.8,2632.7,0.0820398]
[1724110746916,3.7369,2632.8,2632.7,0.0820398]
[1724110749389,6.39566,2632.8,2632.7,0.0820398]
[1724110752029,3.7369,2632.8,2632.7,0.0820398]
[1724110752932,2.4399,2633.1,2632.7,0.0820398]
[1724110753093,7.41,2633.3,2632.8,5.0787]
[1724110753094,1.297,2633.2,2632.8,5.0787]
[1724110753636,1.297,2633.2,2632.9,0.08268289]
[1724110754004,1.297,2633.2,2632.9,2.74127289]
[1724110754319,1.297,2633.2,2632.9,0.08268289]
[1724110757091,1.297,2633.0,2632.9,0.08268289]
[1724110757403,1.297,2633.0,2632.7,2.65886]
[1724110757608,1.297,2633.0,2632.8,0.08260112]
[1724110757801,1.297,2633.0,2632.7,2.65886]
[1724110758124,1.297,2633.0,2632.8,0.08260112]
[1724110758532,1.297,2633.0,2632.6,0.1157288]
[1724110758736,4.94146,2633.0,2632.9,0.08257029]
[1724110758905,2.65868,2632.9,2632.6,0.1157288]
[1724110759107,1.297,2632.7,2632.6,0.1157288]
[1724110760303,5.29953,2633.0,2632.6,0.1157288]
[1724110760304,3.95568,2632.9,2632.6,0.1157288]
[1724110760814,3.95568,2632.9,2632.7,0.08253404]
[1724110766945,1.297,2632.9,2632.7,0.08253404]
[1724110767253,2.2829,2632.8,2632.7,0.08253404]
[1724110767971,4.94166,2632.8,2632.7,0.08253404]
[1724110768468,5.83139,2632.8,2632.7,0.08253404]
[1724110769064,8.49015,2632.8,2632.7,0.08253404]
[1724110769426,4.94166,2632.8,2632.7,0.08253404]
[1724110771321,7.60042,2632.8,2632.7,0.08253404]
[1724110771943,10.89288,2632.8,2632.7,0.08253404]
[1724110772326,10.89288,2632.8,2632.6,0.1157288]
[1724110772327,5.31772,2632.7,2632.6,0.1157288]
[1724110772555,8.98132,2632.7,2632.6,0.1157288]
[1724110772831,10.200328,2632.7,2632.6,0.1157288]
[1724110773031,13.200328,2632.7,2632.6,0.1157288]
[1724110773867,13.750328,2632.7,2632.6,0.1157288]
[1724110774642,16.409188,2632.7,2632.6,0.1157288]
[1724110775663,12.453328,2632.7,2632.6,0.1157288]
[1724110775969,13.750328,2632.7,2632.6,0.1157288]
[1724110778845,16.409188,2632.7,2632.6,0.1157288]
[1724110781465,15.112188,2632.7,2632.6,0.1157288]
[1724110781775,16.409188,2632.7,2632.6,0.1157288]
[1724110785180,11.903328,2632.7,2632.6,0.1157288]
[1724110785385,13.200328,2632.7,2632.6,0.1157288]
[1724110786040,15.859188,2632.7,2632.6,0.1157288]
[1724110786482,16.409188,2632.7,2632.6,0.1157288]
[1724110787079,19.068048,2632.7,2632.6,0.1157288]
[1724110787747,23.072048,2632.7,2632.6,8.8e-06]
[1724110788136,23.072048,2632.7,2631.1,4.96631]
[1724110788137,2.65979,2631.8,2631.1,4.96631]
[1724110788338,2.66023,2631.4,2631.1,2.3059]
[1724110788569,3.95723,2631.4,2631.2,0.07363751]
[1724110789284,3.95685,2631.8,2631.3,2.3059]
[1724110789454,2.65998,2631.6,2631.3,2.3059]
[1724110789788,3.95698,2631.6,2631.4,0.07357579]
[1724110790084,3.95698,2631.6,2631.3,2.3059]
[1724110790282,6.61703,2631.6,2631.3,2.3059]
[1724110790683,6.61703,2631.6,2631.4,0.07357579]
[1724110790684,6.61702,2631.6,2631.4,0.07357579]
[1724110791484,2.66007,2631.5,2631.4,0.07357579]
[1724110791859,2.66007,2631.5,2631.1,2.3059]
[1724110792040,2.66007,2631.5,2631.2,0.07363751]
[1724110792944,3.95718,2631.4,2631.2,0.07363751]
[1724110793344,2.66028,2631.3,2631.2,0.07363751]
[1724110793872,2.6604,2631.2,2630.9,2.2539]
[1724110794390,2.66028,2631.3,2630.9,2.2539]
[1724110795146,2.66041,2631.2,2630.9,2.2539]
[1724110795648,3.95741,2631.2,2630.9,2.2539]
[1724110795849,2.66053,2631.1,2630.9,2.2539]
[1724110796645,1.297,2631.0,2630.7,2.2539]
[1724110801945,2.66015,2631.5,2630.7,2.2539]
[1724110802145,2.65993,2631.7,2631.2,2.66033]
[1724110802390,2.65993,2631.7,2631.3,2.2539]
[1724110802558,2.66003,2631.6,2631.3,2.2539]
[1724110802764,2.66003,2631.6,2630.6,0.8366117]
[1724110802765,2.66008,2631.5,2631.0,2.2539]
[1724110803045,2.66035,2631.3,2631.0,2.2539]
[1724110803344,2.66035,2631.3,2630.8,2.2539]
[1724110804758,2.66035,2631.3,2630.8,4.91467]
[1724110805605,2.66015,2631.5,2630.8,4.91467]
[1724110805606,2.66015,2631.5,2631.0,2.66049]
[1724110805754,2.66015,2631.5,2631.1,2.3103]
[1724110805957,2.66015,2631.5,2631.1,2.38476067]
[1724110806353,2.65992,2631.7,2631.1,2.38476067]
[1724110806587,2.65977,2631.8,2631.3,5.07397]
[1724110806991,2.65977,2631.8,2631.4,0.07436809]
[1724110807191,2.65988,2631.7,2631.3,2.4137]
[1724110807455,2.65988,2631.7,2631.4,0.07436809]
[1724110807686,5.31982,2631.7,2631.1,5.08425]
[1724110807858,5.31982,2631.7,2631.5,0.07433723]
[1724110808050,2.65988,2631.7,2631.1,5.08425]
[1724110808247,2.65988,2631.7,2631.2,0.07442981]
[1724110808504,5.31981,2631.7,2631.2,0.07442981]
[1724110808682,2.65988,2631.7,2631.2,2.73479981]
[1724110809551,9.7365,2632.1,2631.2,2.73479981]
[1724110809552,10.06953,2632.1,2631.3,2.4238]
[1724110809755,14.7996,2632.4,2631.8,2.4238]
[1724110809756,2.65932,2632.3,2631.8,2.4238]
[1724110809988,2.65932,2632.3,2631.8,5.08354]
[1724110810374,10.0691,2632.5,2631.9,0.07410133]
[1724110810590,2.6591,2632.5,2631.9,0.07410133]
[1724110810909,2.65943,2632.2,2631.9,0.07410133]
[1724110814511,5.09963,2632.2,2631.9,0.07410133]
[1724110814968,2.6595,2632.1,2631.9,0.07410133]
[1724110815169,2.65969,2631.9,2631.6,2.3551]
[1724110815374,2.65978,2631.8,2631.6,2.3551]
[1724110815570,2.65969,2631.9,2631.6,2.3551]
[1724110815769,2.65977,2631.8,2631.3,2.3551]
[1724110816166,2.65995,2631.7,2631.0,5.01562]
[1724110816370,2.4402,2631.8,2631.1,2.66048]
[1724110816371,2.66,2631.6,2631.1,2.66048]
[1724110816671,2.65988,2631.7,2631.1,2.66048]
[1724110817272,2.65988,2631.7,2631.0,7.67612]
[1724110817273,2.65999,2631.6,2631.0,7.67612]
[1724110817511,2.65999,2631.6,2631.0,5.0156]
[1724110817710,2.65988,2631.7,2631.1,2.66046]
[1724110817914,2.65988,2631.7,2631.2,2.66034]
[1724110820834,2.65988,2631.7,2631.0,7.6761]
[1724110821040,2.65998,2631.6,2631.3,0.07352994]
[1724110821197,2.65998,2631.6,2631.1,2.66048]
[1724110821938,5.31984,2631.7,2631.2,0.0735608]
[1724110822141,5.31982,2631.7,2631.2,0.0735608]
[1724110822340,2.65988,2631.7,2631.2,0.0735608]
[1724110822514,2.65973,2631.9,2631.4,2.66016]
[1724110823046,12.72907,2632.1,2631.5,0.07368828]
[1724110823338,10.0695,2632.1,2631.6,2.65991]
[1724110823497,5.31906,2632.1,2631.6,2.73356743]
[1724110823693,3.419226,2632.1,2631.6,2.73356743]
[1724110823889,6.078766,2632.1,2631.6,2.73356743]
[1724110824133,3.419226,2632.1,2631.6,0.07365743]
[1724110824348,6.078786,2632.1,2631.6,0.07365743]
[1724110824515,4.93793,2631.9,2631.6,0.07365743]
[1724110824719,7.59768,2631.9,2631.4,2.66016]
[1724110824923,2.65982,2631.8,2631.7,0.07354344]
[1724110825116,5.31965,2631.8,2631.3,2.305]
[1724110825339,2.65982,2631.8,2631.7,0.07354344]
[1724110825556,5.31966,2631.8,2631.3,2.305]
[1724110825721,2.65982,2631.8,2631.7,0.073563]
[1724110826039,2.65982,2631.8,2631.2,2.66031]
[1724110826489,2.65982,2631.8,2631.3,0.07368641]
[1724110826693,2.65982,2631.8,2631.2,2.66031]
[1724110826893,2.65982,2631.8,2631.3,0.07368641]
[1724110827144,2.65982,2631.8,2631.2,2.66031]
[1724110827441,2.65982,2631.8,2631.4,0.07365556]
[1724110827644,2.65987,2631.7,2631.3,0.07368641]
[1724110827849,2.65987,2631.7,2631.5,0.0736247]
[1724110828159,2.65987,2631.7,2631.6,0.07359385]
[1724110828501,2.65987,2631.7,2631.2,5.32063]
[1724110828695,2.65987,2631.7,2631.3,0.07368641]
[1724110828894,2.65987,2631.7,2631.2,2.66031]
[1724110829095,2.65987,2631.7,2631.3,0.07368641]
[1724110829343,2.65987,2631.7,2631.2,2.66031]
[1724110829491,2.65987,2631.7,2631.4,0.07365556]
[1724110829698,2.65987,2631.7,2631.2,2.66031]
[1724110829998,2.65987,2631.7,2631.3,0.07368641]
[1724110830300,2.65987,2631.7,2631.4,0.07385116]
[1724110830527,2.65987,2631.7,2631.2,2.66031]
[1724110830727,2.65987,2631.7,2631.5,0.0738203]
[1724110830938,3.419647,2631.7,2631.2,2.66031]
[1724110831149,3.419647,2631.7,2631.6,0.07378945]
[1724110831343,3.419647,2631.7,2631.2,2.66031]
[1724110831546,2.65987,2631.7,2631.6,0.07378945]
[1724110831725,2.65987,2631.7,2631.2,2.66031]
[1724110831993,2.65987,2631.7,2631.6,0.07378945]
[1724110832114,2.65987,2631.7,2631.2,2.66031]
[1724110832316,7.59766,2631.9,2631.6,0.11351278]
[1724110832514,4.9379,2631.9,2631.4,2.66017]
[1724110832715,2.2782,2631.9,2631.7,0.11353422]
[1724110832930,2.2782,2631.9,2631.5,2.66003]
[1724110833134,2.4105,2632.2,2631.8,0.11350186]
[1724110833328,2.4105,2632.2,2631.5,5.14512]
[1724110833329,6.05193,2632.2,2631.7,2.65981]
[1724110833857,7.41,2632.3,2631.9,2.65967]
[1724110834199,7.41,2632.3,2632.0,0.11337847]
[1724110835454,10.06931,2632.3,2632.0,0.11337847]
[1724110835772,10.06931,2632.3,2631.7,2.6598]
[1724110835970,10.06931,2632.3,2632.1,0.11334123]
[1724110836137,1.272848,2632.2,2631.7,5.31962]
[1724110836473,10.06931,2632.3,2631.5,2.4851]
[1724110836474,7.41,2632.3,2632.2,0.11330888]
[1724110836672,2.65917,2632.4,2631.9,2.6596]
[1724110837032,5.57545,2632.5,2632.0,2.77292358]
[1724110839292,2.65882,2632.8,2632.3,2.6592]
[1724110839582,2.65882,2632.8,2632.0,2.59847358]
[1724110839583,7.41,2633.1,2632.7,2.65876]
[1724110839880,3.05524652,2633.3,2632.5,2.4851]
[1724110839881,2.65827,2633.3,2632.8,2.6587]
[1724110840177,2.65827,2633.3,2632.8,2.77181484]
[1724110840383,7.41,2633.5,2633.0,2.65848]
[1724110840751,10.06812,2633.5,2633.1,0.11279779]
[1724110840956,10.06812,2633.5,2632.9,2.4851]
[1724110840957,1.006812,2633.4,2632.9,5.14373]
[1724110841276,3.665032,2633.4,2632.8,2.65873]
[1724110841778,3.665032,2633.4,2632.9,0.11286245]
[1724110841779,2.65846,2633.1,2632.9,0.11286245]
[1724110842009,2.65846,2633.1,2632.2,3.0]
[1724110842010,2.65831,2633.3,2632.5,2.65906]
[1724110842143,1.006812,2633.4,2633.0,0.11283012]
[1724110842484,1.006812,2633.4,2632.8,2.4851]
[1724110842485,3.665052,2633.4,2632.8,2.4851]
[1724110842643,3.665052,2633.4,2632.7,5.31758]
[1724110842837,3.665052,2633.4,2632.8,0.11234731]
[1724110843303,1.3733132,2633.3,2632.8,0.11234731]
[1724110843484,1.3733132,2633.3,2632.8,2.77108731]
[1724110843791,3.665052,2633.4,2632.9,0.11231498]
[1724110844586,1.006812,2633.4,2632.9,2.77094498]
[1724110846376,12.7262,2633.5,2632.9,2.77094498]
[1724110846890,2.65816,2633.4,2632.9,2.77094498]
[1724110850471,12.72623,2633.5,2632.9,2.77094498]
[1724110850670,12.72623,2633.5,2632.9,5.12368498]
[1724110850671,7.41,2633.5,2632.9,5.12368498]
[1724110850887,2.4105,2633.6,2632.9,7.78224498]
[1724110850888,5.06846,2633.6,2632.9,7.78224498]
[1724110851196,2.65818,2633.4,2632.9,2.77087498]
[1724110852371,2.65839,2633.2,2632.9,0.11231498]
[1724110852592,0.265839,2633.1,2632.6,5.01175]
[1724110852789,2.65839,2633.2,2633.0,0.11173532]
[1724110853005,2.65839,2633.2,2632.7,2.65881]
[1724110853301,5.31638,2633.4,2633.1,0.111703]
[1724110853456,5.31639,2633.4,2632.8,2.65869]
[1724110853663,5.31639,2633.4,2633.2,0.11169999]
[1724110853857,5.31639,2633.4,2632.8,2.65869]
[1724110853858,6.089079,2633.4,2632.8,2.65869]
[1724110854063,3.430859,2633.4,2633.3,0.11166767]
[1724110854292,3.430859,2633.4,2632.8,2.65869]
[1724110854293,2.65817,2633.4,2632.8,5.3174]
[1724110854780,2.65817,2633.4,2632.9,0.11179696]
[1724110855119,5.3164,2633.4,2632.9,0.11179696]
[1724110855289,6.08909,2633.4,2632.9,0.11179696]
[1724110855495,3.43086,2633.4,2632.9,0.11179696]
[1724110856802,2.65817,2633.4,2632.9,2.77044696]
[1724110857018,5.06852,2633.6,2633.0,7.78347]
[1724110857307,5.06852,2633.6,2633.0,5.23302116]
[1724110857675,7.72653,2633.6,2633.0,5.23302116]
[1724110858008,5.06851,2633.6,2633.0,5.23302116]
[1724110859207,7.72655,2633.6,2633.0,5.23302116]
[1724110859413,8.233401,2633.6,2633.0,5.23302116]
[1724110860320,8.233401,2633.6,2633.0,7.89153116]
[1724110860321,5.575361,2633.6,2633.0,7.89153116]
[1724110860496,5.575361,2633.6,2633.0,5.23302116]
[1724110860679,2.65827,2633.3,2633.0,0.10805116]
[1724110860883,0.5575361,2633.5,2633.0,0.10805116]
[1724110860884,3.2155961,2633.5,2633.0,0.10805116]
[1724110861080,2.65806,2633.5,2632.9,2.65858]
[1724110861283,2.65806,2633.5,2633.0,2.65856]
[1724110861488,2.65806,2633.5,2633.0,2.76648415]
[1724110862165,2.65806,2633.5,2633.1,2.326]
[1724110862300,2.65806,2633.5,2633.0,0.10792415]
[1724110862484,2.4105,2633.6,2633.0,2.76647415]
[1724110862684,5.10845,2633.8,2633.2,2.65836]
[1724110862915,2.4507,2633.8,2633.3,2.65825]
[1724110863082,2.4507,2633.8,2633.3,5.04918207]
[1724110863916,10.0677,2633.9,2633.3,5.04918207]
[1724110864091,10.69467614,2633.9,2633.3,2.39093207]
[1724110864578,2.65776,2633.8,2633.3,2.39093207]
[1724110865092,10.69467614,2633.9,2633.3,5.04917207]
[1724110865288,12.72542,2633.9,2633.3,5.04917207]
[1724110865488,10.0677,2633.9,2633.3,2.39093207]
[1724110865684,2.65781,2633.8,2633.3,0.10783207]
[1724110865884,2.65781,2633.8,2633.2,2.65829]
[1724110866273,2.65781,2633.8,2633.3,0.10770507]
[1724110866474,2.65781,2633.8,2633.2,2.65829]
[1724110866671,2.65781,2633.8,2633.3,0.10770507]
[1724110866977,7.41,2633.9,2633.4,2.65811]
[1724110867244,7.41,2633.9,2633.4,2.7657681]
[1724110867756,10.06766,2633.9,2633.4,2.7657681]
[1724110868199,7.41,2633.9,2633.5,2.65805]
[1724110868400,7.41,2633.9,2633.6,5.07825]
[1724110868650,4.95576,2634.2,2633.6,5.18584347]
[1724110869004,10.0673,2634.3,2633.7,2.65777]
[1724110869343,7.41,2634.3,2633.8,2.65769]
[1724110869558,7.41,2634.3,2633.9,2.76506352]
[1724110869918,7.41,2634.3,2633.7,5.31554]
[1724110870232,0.39694695,2635.3,2633.6,2.4203]
[1724110870233,2.6569,2634.7,2634.1,2.65742]
[1724110870405,2.6569,2634.7,2634.1,5.31481]
[1724110870754,2.6569,2634.7,2634.2,0.10730685]
[1724110871106,2.6569,2634.7,2634.2,2.76461685]
[1724110871437,6.074999,2634.7,2634.2,2.76461685]
[1724110871749,2.65695,2634.6,2634.2,0.10730685]
[1724110871915,3.418099,2634.7,2634.2,0.10730685]
[1724110871916,2.65706,2634.5,2634.2,0.10730685]
[1724110872115,2.65706,2634.5,2633.9,5.07789]
[1724110872330,2.65706,2634.5,2634.0,0.10659995]
[1724110872331,5.3142,2634.5,2634.0,0.10659995]
[1724110872502,5.6560259,2634.5,2634.0,0.10659995]
[1724110872699,2.65716,2634.4,2634.0,0.10659995]
[1724110872901,5.6560159,2634.5,2634.0,0.10659995]
[1724110873340,5.6560059,2634.5,2634.0,0.10659995]
[1724110874009,2.65727,2634.3,2634.0,0.10659995]
[1724110874667,0.56560059,2634.4,2634.0,0.10659995]
[1724110875568,3.22278059,2634.4,2634.0,0.10659995]
[1724110875770,2.65725,2634.3,2634.0,0.10659995]
[1724110876542,2.65725,2634.3,2634.1,0.10566277]
[1724110876849,2.65725,2634.3,2633.8,2.65773]
[1724110877374,2.65725,2634.3,2633.9,0.10572738]
[1724110879254,3.48141606,2634.3,2633.9,0.10572738]
[1724110879581,3.48141606,2634.3,2634.0,0.10575853]
[1724110879925,3.48141606,2634.3,2633.7,4.9636]
[1724110880155,2.65725,2634.3,2633.8,2.76355314]
[1724110880353,5.01887,2634.4,2633.8,2.76355314]
[1724110880570,5.01887,2634.4,2633.8,4.06055314]
[1724110882379,2.65717,2634.4,2633.8,4.06055314]
[1724110884990,2.65717,2634.4,2633.9,2.65765]
[1724110885463,2.65717,2634.4,2634.0,0.10575365]
[1724110887763,5.31426,2634.5,2634.0,0.10575365]
[1724110888252,2.65715,2634.4,2634.0,0.10575365]
[1724110889162,7.41,2634.6,2634.2,1.297]
[1724110889484,7.41,2634.6,2634.2,3.95433]
[1724110889684,7.41,2634.6,2634.2,2.65733]
[1724110889906,7.41,2634.6,2634.3,0.10559331]
[1724110890074,10.06696,2634.6,2634.3,0.10559331]
[1724110890395,10.06696,2634.6,2631.4,1.82231163]
[1724110890396,2.65717,2634.4,2633.8,2.3674]
[1724110890600,5.01487,2634.4,2633.8,2.3674]
[1724110891679,5.01487,2634.4,2633.8,3.6644]
[1724110891999,2.65731,2634.3,2633.8,6.32213]
[1724110895701,2.65731,2634.3,2633.9,0.10573228]
[1724110897142,2.3577,2634.4,2633.9,2.76335228]
[1724110897309,5.01485,2634.4,2633.9,2.76335228]
[1724110898835,5.01485,2634.4,2633.9,4.06035228]
[1724110899155,5.01485,2634.4,2633.9,2.76335228]
[1724110900209,2.65715,2634.4,2633.9,2.76335228]
[1724110902655,2.4933,2634.2,2633.9,0.10573228]
[1724110902854,7.8084,2634.0,2633.9,0.10573228]
[1724110903072,2.65809,2633.5,2633.2,0.83502713]
[1724110903208,2.65809,2633.5,2632.9,5.31718]
[1724110903409,2.65809,2633.5,2632.8,3.7317]
[1724110903410,2.65824,2633.4,2633.3,0.09533124]
[1724110903660,2.65828,2633.3,2632.8,5.09345]
[1724110903843,2.65809,2633.5,2633.3,0.09533124]
[1724110904044,2.65809,2633.5,2633.0,2.65855]
[1724110904257,2.65809,2633.5,2633.4,0.09529893]
[1724110904457,2.65809,2633.5,2633.0,2.65855]
[1724110904766,2.65792,2633.7,2633.1,2.65837]
[1724110904907,1.297,2633.8,2633.1,2.65837]
[1724110904908,1.297,2633.8,2633.2,0.0957883]
[1724110905108,2.3084,2633.9,2633.3,5.10629]
[1724110905368,7.41,2634.0,2633.5,2.65799]
[1724110905526,7.41,2634.0,2633.7,2.65784]
[1724110905846,7.41,2634.0,2633.8,0.09242164]
[1724110906047,2.65748,2634.1,2633.8,0.09242164]
[1724110906254,2.65748,2634.1,2633.6,2.65795]
[1724110906456,2.65748,2634.1,2633.9,0.09238934]
[1724110906663,2.65732,2634.3,2633.7,2.65785]
[1724110906810,2.6074,2634.2,2633.7,2.65785]
[1724110907010,2.6074,2634.2,2633.8,0.09229469]
[1724110907231,2.65747,2634.1,2633.5,2.65799]
[1724110907434,2.65758,2634.0,2633.5,2.65799]
[1724110907655,4.96598,2634.0,2633.6,0.09253016]
[1724110907969,2.65772,2633.9,2633.6,0.09253016]
[1724110908149,2.65772,2633.9,2633.4,1.297]
[1724110908320,2.65772,2633.9,2633.5,0.09256248]
[1724110909561,2.65776,2633.8,2633.5,0.09256248]
[1724110909764,2.65772,2633.9,2633.2,2.65828]
[1724110909765,2.65788,2633.7,2633.2,2.65828]
[1724110910066,5.31547,2633.9,2633.3,2.75099428]
[1724110910413,2.65776,2633.8,2633.3,2.75099428]
[1724110911778,1.503388,2633.8,2633.3,0.09274428]
[1724110911915,1.503388,2633.8,2632.9,2.65859]
[1724110911916,5.31627,2633.5,2632.9,2.65859]
[1724110912121,2.65813,2633.5,2632.9,2.65859]
[1724110912332,2.65813,2633.5,2633.0,0.09288032]
[1724110912518,2.65812,2633.5,2633.0,0.09288032]
[1724110912751,2.65816,2633.4,2632.9,2.6586]
[1724110912968,2.65816,2633.4,2633.0,0.0928852]
[1724110915236,2.65816,2633.4,2632.8,5.0028]
[1724110915468,2.65816,2633.4,2633.1,0.09285287]
[1724110915756,2.65816,2633.4,2633.2,0.09282055]
[1724110915956,2.65816,2633.4,2632.8,5.0028]
[1724110916162,2.65816,2633.4,2632.9,0.09291753]
[1724110916862,2.65816,2633.4,2632.9,2.75156753]
[1724110917773,2.65812,2633.5,2633.0,2.65856]
[1724110917921,2.65812,2633.5,2633.1,0.09312634]
[1724110918866,4.96101,2633.7,2633.1,0.09312634]
[1724110918867,2.3031,2633.7,2633.2,2.65835]
[1724110919031,9.8909,2634.0,2633.5,2.65805]
[1724110919232,2.65751,2634.1,2633.5,2.65805]
[1724110919477,2.65764,2634.0,2633.6,0.09311125]
[1724110919836,2.65776,2633.8,2633.6,0.09311125]
[1724110920129,2.65767,2633.9,2633.4,2.65815]
[1724110920349,2.65767,2633.9,2633.5,0.09299706]
[1724110920666,2.65767,2633.9,2633.2,2.65834]
[1724110920667,2.65778,2633.8,2633.2,2.65834]
[1724110920830,2.4809,2633.9,2633.6,0.09296475]
[1724110920831,2.65785,2633.7,2633.6,0.09296475]
[1724110921035,2.65785,2633.7,2633.0,2.65854]
[1724110921364,2.65807,2633.5,2633.0,2.65854]
[1724110921518,2.65807,2633.5,2632.9,4.99367]
[1724110921519,5.31618,2633.5,2633.1,0.09312634]
[1724110921857,2.65807,2633.5,2632.9,4.99367]
[1724110922062,2.65807,2633.5,2633.2,0.09309402]
[1724110922262,2.65807,2633.5,2632.9,4.99367]
[1724110922523,2.65807,2633.5,2633.3,0.0930617]
[1724110922729,2.65807,2633.5,2633.0,2.65855]
[1724110922931,2.65807,2633.5,2633.4,0.09302938]
[1724110923234,4.98637,2633.5,2633.4,0.09302938]
[1724110923523,4.98637,2633.5,2633.0,2.65855]
[1724110923756,5.31583,2633.7,2633.4,0.09302938]
[1724110923894,2.658,2633.6,2633.1,2.65843]
[1724110924091,2.658,2633.6,2633.5,0.09299706]
[1724110924290,2.658,2633.6,2633.1,2.65843]
[1724110924532,2.658,2633.6,2633.5,0.09299706]
[1724110925036,2.658,2633.6,2633.1,2.65843]
[1724110925188,2.658,2633.6,2633.5,0.09299706]
[1724110925393,2.658,2633.6,2633.1,2.65843]
[1724110925639,2.658,2633.6,2633.2,0.09309402]
[1724110925841,2.65759,2634.0,2633.4,2.65814]
[1724110926041,2.65759,2634.0,2633.3,5.1329]
[1724110926241,2.65759,2634.0,2633.5,2.65804]
[1724110926451,2.3283,2634.1,2633.6,2.65788]
[1724110926745,2.65742,2634.2,2633.7,2.65785]
[1724110927051,2.65746,2634.1,2633.8,0.09290013]
[1724110927387,2.65746,2634.1,2633.7,2.65785]
[1724110927702,2.65746,2634.1,2633.8,0.09290013]
[1724110928041,2.65746,2634.1,2633.7,2.65785]
[1724110928333,2.65746,2634.1,2633.9,0.09286782]
[1724110928533,2.6574,2634.2,2633.8,0.09290013]
[1724110928756,7.75974,2634.2,2634.0,0.09283552]
[1724110928897,2.6574,2634.2,2634.0,0.09283552]
[1724110929093,2.6574,2634.2,2633.7,5.12498]